{"text_format":"1","workbook":"xlsx","n_sheets":3,"sheets":["Front Sheet","Report","Action Plan"],"not_rendered":{"charts":0,"images":3,"macros":1,"external_links":0,"defined_names":1,"comments":0,"pivot_tables":0},"unopened":[],"bounds":{"document_bytes":16777216,"sheet_cells":100000,"rows_first":2000,"rows_last":500,"rows_between":2000,"halvings":0,"cell_chars":16384,"cell_head_chars":4096},"cells_cut":0,"cells_raw":0,"read":"whole","date_system":"1900"}

{"sheet":"Front Sheet","index":0,"n_rows":24,"n_cols":13,"rows_kept":24,"cut":false,"hidden":false,"merged":[]}
[]
[null,null,null,null,null,null,null,null,null,null,null,null,"Red"]
[null,null,null,null,null,null,null,null,null,null,null,null,"Amber"]
[null,null,null,null,null,null,null,null,null,null,null,null,"Green"]
[]
["Template for a Safeguarding report for Governors/Trust "]
[]
["Period Covered:"]
["Name of author"]
["DSL"]
["Governing body/Trust rep"]
[]
[]
[]
["This tool has been created to support you to develop constructive dialogue with your governing body around strategic safeguarding arrangements in your setting. "]
["The tool is split into two main sections - Report and Action plan. "]
[]
["The report is created to support you to consider elements of your safeguarding arrangements. "]
["You will be able to RAG Rate these individually. "]
["In the Action Plan tab you should be able to automatically generate a plan which make up your 'Red' and 'Amber' responses by clicking the following button. "]
[]
[]
["If you experiencience and technical issues - please contact the "]
["safeguardingineducationteam@bristol.gov.uk"]

{"sheet":"Report","index":1,"n_rows":45,"n_cols":8,"rows_kept":45,"cut":false,"hidden":false,"merged":[]}
[]
[null,"Numbers","RAG","Areas of development","Areas of strength","Actions moving forward","By Who","By when"]
["Progress reporting and any actions"]
["S.175 Annual Safeguarding Audit","NA"]
["Safeguarding capacity (staffing)","NA"]
["Training Record (of staff at all levels)","NA"]
["Policies and practice","NA"]
["Safeguarding on the curriculum","NA"]
["Online Safety considerations","NA"]
["Single Central Record","NA"]
["Representation made at professional network meetings for local/national safeguarding updates. ","NA"]
["Attendance rate of vulnerable cohort"]
["Internal Safeguarding arrangements"]
["Number of cause for concerns/CPOMS entries"]
["Number of vulnerable students reviewed internally. "]
["Number of students discussed/consulted with at Team around the school meetings/Families in Focus. "]
["Number of police notifications received and processed."]
["Number of referrals to social care."]
["Number of peer on peer incidents bullying "]
["Number of peer on peer incidents sexually harmful behaviour/harassment"]
["Number of prejudice related incidents. "]
["Number of physical interventions"]
["Number of fixed term exclusions"]
["Number of negotiated transfer"]
["Number of dual registered pupils."]
["Number of permanent exclusion. "]
["Data – Partnership Meetings – How many have you attended – have you managed to contribute/make contribution to all?"]
["Initial/Review Child Protection Conferences and core group meetings"]
["Child Protection Strategy meetings"]
["Child in need meetings"]
["Non-statutory Multi-agency  meetings (Team around the family)"]
["Contextual Safeguarding Strategies. "]
["Channel (Prevent) meetings"]
["Use of the Local Safeguarding Partnership Escalation Policy. "]
["Data -  Number of students who are/subject to:"]
["Child Protection Plans"]
["Child in Need"]
["Children in Care"]
["Previously looked after"]
["Privately Fostered "]
["Young carers"]
["Vulnerable but not included in the above. "]
["Data about staff and safer working practice:"]
["Number of allegations made against staff"]
["Number of referrals made to the LADO. "]

{"sheet":"Action Plan","index":2,"n_rows":153,"n_cols":8,"rows_kept":153,"cut":false,"hidden":false,"merged":[]}
["Action Plan"]
[null,"Numbers","RAG","Areas of development","Areas of strength","Actions moving forward","By Who","By when"]
["Progress reporting and any actions"]
[{"$f":"IF(Report!C4=\"Red\",Report!A4,IF(Report!C4=\"Amber\",Report!A4))","v":false},{"$f":"IF(Report!C4=\"Red\",Report!B4,IF(Report!C4=\"Amber\",Report!B4))","v":false},{"$f":"IF(Report!C4=\"Red\",Report!C4,IF(Report!C4=\"Amber\",Report!C4))","v":false},{"$f":"IF(Report!C4=\"Red\",Report!D4,IF(Report!C4=\"Amber\",Report!D4))","v":false},{"$f":"IF(Report!C4=\"Red\",Report!E4,IF(Report!C4=\"Amber\",Report!E4))","v":false},{"$f":"IF(Report!C4=\"Red\",Report!F4,IF(Report!C4=\"Amber\",Report!F4))","v":false},{"$f":"IF(Report!C4=\"Red\",Report!G4,IF(Report!C4=\"Amber\",Report!G4))","v":false},{"$f":"IF(Report!C4=\"Red\",Report!H4,IF(Report!C4=\"Amber\",Report!H4))","v":false}]
[{"$f":"IF(Report!C5=\"Red\",Report!A5,IF(Report!C5=\"Amber\",Report!A5))","v":false},{"$f":"IF(Report!C5=\"Red\",Report!B5,IF(Report!C5=\"Amber\",Report!B5))","v":false},{"$f":"IF(Report!C5=\"Red\",Report!C5,IF(Report!C5=\"Amber\",Report!C5))","v":false},{"$f":"IF(Report!C5=\"Red\",Report!D5,IF(Report!C5=\"Amber\",Report!D5))","v":false},{"$f":"IF(Report!C5=\"Red\",Report!E5,IF(Report!C5=\"Amber\",Report!E5))","v":false},{"$f":"IF(Report!C5=\"Red\",Report!F5,IF(Report!C5=\"Amber\",Report!F5))","v":false},{"$f":"IF(Report!C5=\"Red\",Report!G5,IF(Report!C5=\"Amber\",Report!G5))","v":false},{"$f":"IF(Report!C5=\"Red\",Report!H5,IF(Report!C5=\"Amber\",Report!H5))","v":false}]
[{"$f":"IF(Report!C6=\"Red\",Report!A6,IF(Report!C6=\"Amber\",Report!A6))","v":false},{"$f":"IF(Report!C6=\"Red\",Report!B6,IF(Report!C6=\"Amber\",Report!B6))","v":false},{"$f":"IF(Report!C6=\"Red\",Report!C6,IF(Report!C6=\"Amber\",Report!C6))","v":false},{"$f":"IF(Report!C6=\"Red\",Report!D6,IF(Report!C6=\"Amber\",Report!D6))","v":false},{"$f":"IF(Report!C6=\"Red\",Report!E6,IF(Report!C6=\"Amber\",Report!E6))","v":false},{"$f":"IF(Report!C6=\"Red\",Report!F6,IF(Report!C6=\"Amber\",Report!F6))","v":false},{"$f":"IF(Report!C6=\"Red\",Report!G6,IF(Report!C6=\"Amber\",Report!G6))","v":false},{"$f":"IF(Report!C6=\"Red\",Report!H6,IF(Report!C6=\"Amber\",Report!H6))","v":false}]
[{"$f":"IF(Report!C7=\"Red\",Report!A7,IF(Report!C7=\"Amber\",Report!A7))","v":false},{"$f":"IF(Report!C7=\"Red\",Report!B7,IF(Report!C7=\"Amber\",Report!B7))","v":false},{"$f":"IF(Report!C7=\"Red\",Report!C7,IF(Report!C7=\"Amber\",Report!C7))","v":false},{"$f":"IF(Report!C7=\"Red\",Report!D7,IF(Report!C7=\"Amber\",Report!D7))","v":false},{"$f":"IF(Report!C7=\"Red\",Report!E7,IF(Report!C7=\"Amber\",Report!E7))","v":false},{"$f":"IF(Report!C7=\"Red\",Report!F7,IF(Report!C7=\"Amber\",Report!F7))","v":false},{"$f":"IF(Report!C7=\"Red\",Report!G7,IF(Report!C7=\"Amber\",Report!G7))","v":false},{"$f":"IF(Report!C7=\"Red\",Report!H7,IF(Report!C7=\"Amber\",Report!H7))","v":false}]
[{"$f":"IF(Report!C8=\"Red\",Report!A8,IF(Report!C8=\"Amber\",Report!A8))","v":false},{"$f":"IF(Report!C8=\"Red\",Report!B8,IF(Report!C8=\"Amber\",Report!B8))","v":false},{"$f":"IF(Report!C8=\"Red\",Report!C8,IF(Report!C8=\"Amber\",Report!C8))","v":false},{"$f":"IF(Report!C8=\"Red\",Report!D8,IF(Report!C8=\"Amber\",Report!D8))","v":false},{"$f":"IF(Report!C8=\"Red\",Report!E8,IF(Report!C8=\"Amber\",Report!E8))","v":false},{"$f":"IF(Report!C8=\"Red\",Report!F8,IF(Report!C8=\"Amber\",Report!F8))","v":false},{"$f":"IF(Report!C8=\"Red\",Report!G8,IF(Report!C8=\"Amber\",Report!G8))","v":false},{"$f":"IF(Report!C8=\"Red\",Report!H8,IF(Report!C8=\"Amber\",Report!H8))","v":false}]
[{"$f":"IF(Report!C9=\"Red\",Report!A9,IF(Report!C9=\"Amber\",Report!A9))","v":false},{"$f":"IF(Report!C9=\"Red\",Report!B9,IF(Report!C9=\"Amber\",Report!B9))","v":false},{"$f":"IF(Report!C9=\"Red\",Report!C9,IF(Report!C9=\"Amber\",Report!C9))","v":false},{"$f":"IF(Report!C9=\"Red\",Report!D9,IF(Report!C9=\"Amber\",Report!D9))","v":false},{"$f":"IF(Report!C9=\"Red\",Report!E9,IF(Report!C9=\"Amber\",Report!E9))","v":false},{"$f":"IF(Report!C9=\"Red\",Report!F9,IF(Report!C9=\"Amber\",Report!F9))","v":false},{"$f":"IF(Report!C9=\"Red\",Report!G9,IF(Report!C9=\"Amber\",Report!G9))","v":false},{"$f":"IF(Report!C9=\"Red\",Report!H9,IF(Report!C9=\"Amber\",Report!H9))","v":false}]
[{"$f":"IF(Report!C10=\"Red\",Report!A10,IF(Report!C10=\"Amber\",Report!A10))","v":false},{"$f":"IF(Report!C10=\"Red\",Report!B10,IF(Report!C10=\"Amber\",Report!B10))","v":false},{"$f":"IF(Report!C10=\"Red\",Report!C10,IF(Report!C10=\"Amber\",Report!C10))","v":false},{"$f":"IF(Report!C10=\"Red\",Report!D10,IF(Report!C10=\"Amber\",Report!D10))","v":false},{"$f":"IF(Report!C10=\"Red\",Report!E10,IF(Report!C10=\"Amber\",Report!E10))","v":false},{"$f":"IF(Report!C10=\"Red\",Report!F10,IF(Report!C10=\"Amber\",Report!F10))","v":false},{"$f":"IF(Report!C10=\"Red\",Report!G10,IF(Report!C10=\"Amber\",Report!G10))","v":false},{"$f":"IF(Report!C10=\"Red\",Report!H10,IF(Report!C10=\"Amber\",Report!H10))","v":false}]
[{"$f":"IF(Report!C11=\"Red\",Report!A11,IF(Report!C11=\"Amber\",Report!A11))","v":false},{"$f":"IF(Report!C11=\"Red\",Report!B11,IF(Report!C11=\"Amber\",Report!B11))","v":false},{"$f":"IF(Report!C11=\"Red\",Report!C11,IF(Report!C11=\"Amber\",Report!C11))","v":false},{"$f":"IF(Report!C11=\"Red\",Report!D11,IF(Report!C11=\"Amber\",Report!D11))","v":false},{"$f":"IF(Report!C11=\"Red\",Report!E11,IF(Report!C11=\"Amber\",Report!E11))","v":false},{"$f":"IF(Report!C11=\"Red\",Report!F11,IF(Report!C11=\"Amber\",Report!F11))","v":false},{"$f":"IF(Report!C11=\"Red\",Report!G11,IF(Report!C11=\"Amber\",Report!G11))","v":false},{"$f":"IF(Report!C11=\"Red\",Report!H11,IF(Report!C11=\"Amber\",Report!H11))","v":false}]
[{"$f":"IF(Report!C12=\"Red\",Report!A12,IF(Report!C12=\"Amber\",Report!A12))","v":false},{"$f":"IF(Report!C12=\"Red\",Report!B12,IF(Report!C12=\"Amber\",Report!B12))","v":false},{"$f":"IF(Report!C12=\"Red\",Report!C12,IF(Report!C12=\"Amber\",Report!C12))","v":false},{"$f":"IF(Report!C12=\"Red\",Report!D12,IF(Report!C12=\"Amber\",Report!D12))","v":false},{"$f":"IF(Report!C12=\"Red\",Report!E12,IF(Report!C12=\"Amber\",Report!E12))","v":false},{"$f":"IF(Report!C12=\"Red\",Report!F12,IF(Report!C12=\"Amber\",Report!F12))","v":false},{"$f":"IF(Report!C12=\"Red\",Report!G12,IF(Report!C12=\"Amber\",Report!G12))","v":false},{"$f":"IF(Report!C12=\"Red\",Report!H12,IF(Report!C12=\"Amber\",Report!H12))","v":false}]
["Internal Safeguarding arrangements"]
[{"$f":"IF(Report!C14=\"Red\",Report!A14,IF(Report!C14=\"Amber\",Report!A14))","v":false},{"$f":"IF(Report!C14=\"Red\",Report!B14,IF(Report!C14=\"Amber\",Report!B14))","v":false},{"$f":"IF(Report!C14=\"Red\",Report!C14,IF(Report!C14=\"Amber\",Report!C14))","v":false},{"$f":"IF(Report!C14=\"Red\",Report!D14,IF(Report!C14=\"Amber\",Report!D14))","v":false},{"$f":"IF(Report!C14=\"Red\",Report!E14,IF(Report!C14=\"Amber\",Report!E14))","v":false},{"$f":"IF(Report!C14=\"Red\",Report!F14,IF(Report!C14=\"Amber\",Report!F14))","v":false},{"$f":"IF(Report!C14=\"Red\",Report!G14,IF(Report!C14=\"Amber\",Report!G14))","v":false},{"$f":"IF(Report!C14=\"Red\",Report!H14,IF(Report!C14=\"Amber\",Report!H14))","v":false}]
[{"$f":"IF(Report!C15=\"Red\",Report!A15,IF(Report!C15=\"Amber\",Report!A15))","v":false},{"$f":"IF(Report!C15=\"Red\",Report!B15,IF(Report!C15=\"Amber\",Report!B15))","v":false},{"$f":"IF(Report!C15=\"Red\",Report!C15,IF(Report!C15=\"Amber\",Report!C15))","v":false},{"$f":"IF(Report!C15=\"Red\",Report!D15,IF(Report!C15=\"Amber\",Report!D15))","v":false},{"$f":"IF(Report!C15=\"Red\",Report!E15,IF(Report!C15=\"Amber\",Report!E15))","v":false},{"$f":"IF(Report!C15=\"Red\",Report!F15,IF(Report!C15=\"Amber\",Report!F15))","v":false},{"$f":"IF(Report!C15=\"Red\",Report!G15,IF(Report!C15=\"Amber\",Report!G15))","v":false},{"$f":"IF(Report!C15=\"Red\",Report!H15,IF(Report!C15=\"Amber\",Report!H15))","v":false}]
[{"$f":"IF(Report!C16=\"Red\",Report!A16,IF(Report!C16=\"Amber\",Report!A16))","v":false},{"$f":"IF(Report!C16=\"Red\",Report!B16,IF(Report!C16=\"Amber\",Report!B16))","v":false},{"$f":"IF(Report!C16=\"Red\",Report!C16,IF(Report!C16=\"Amber\",Report!C16))","v":false},{"$f":"IF(Report!C16=\"Red\",Report!D16,IF(Report!C16=\"Amber\",Report!D16))","v":false},{"$f":"IF(Report!C16=\"Red\",Report!E16,IF(Report!C16=\"Amber\",Report!E16))","v":false},{"$f":"IF(Report!C16=\"Red\",Report!F16,IF(Report!C16=\"Amber\",Report!F16))","v":false},{"$f":"IF(Report!C16=\"Red\",Report!G16,IF(Report!C16=\"Amber\",Report!G16))","v":false},{"$f":"IF(Report!C16=\"Red\",Report!H16,IF(Report!C16=\"Amber\",Report!H16))","v":false}]
[{"$f":"IF(Report!C17=\"Red\",Report!A17,IF(Report!C17=\"Amber\",Report!A17))","v":false},{"$f":"IF(Report!C17=\"Red\",Report!B17,IF(Report!C17=\"Amber\",Report!B17))","v":false},{"$f":"IF(Report!C17=\"Red\",Report!C17,IF(Report!C17=\"Amber\",Report!C17))","v":false},{"$f":"IF(Report!C17=\"Red\",Report!D17,IF(Report!C17=\"Amber\",Report!D17))","v":false},{"$f":"IF(Report!C17=\"Red\",Report!E17,IF(Report!C17=\"Amber\",Report!E17))","v":false},{"$f":"IF(Report!C17=\"Red\",Report!F17,IF(Report!C17=\"Amber\",Report!F17))","v":false},{"$f":"IF(Report!C17=\"Red\",Report!G17,IF(Report!C17=\"Amber\",Report!G17))","v":false},{"$f":"IF(Report!C17=\"Red\",Report!H17,IF(Report!C17=\"Amber\",Report!H17))","v":false}]
[{"$f":"IF(Report!C18=\"Red\",Report!A18,IF(Report!C18=\"Amber\",Report!A18))","v":false},{"$f":"IF(Report!C18=\"Red\",Report!B18,IF(Report!C18=\"Amber\",Report!B18))","v":false},{"$f":"IF(Report!C18=\"Red\",Report!C18,IF(Report!C18=\"Amber\",Report!C18))","v":false},{"$f":"IF(Report!C18=\"Red\",Report!D18,IF(Report!C18=\"Amber\",Report!D18))","v":false},{"$f":"IF(Report!C18=\"Red\",Report!E18,IF(Report!C18=\"Amber\",Report!E18))","v":false},{"$f":"IF(Report!C18=\"Red\",Report!F18,IF(Report!C18=\"Amber\",Report!F18))","v":false},{"$f":"IF(Report!C18=\"Red\",Report!G18,IF(Report!C18=\"Amber\",Report!G18))","v":false},{"$f":"IF(Report!C18=\"Red\",Report!H18,IF(Report!C18=\"Amber\",Report!H18))","v":false}]
[{"$f":"IF(Report!C19=\"Red\",Report!A19,IF(Report!C19=\"Amber\",Report!A19))","v":false},{"$f":"IF(Report!C19=\"Red\",Report!B19,IF(Report!C19=\"Amber\",Report!B19))","v":false},{"$f":"IF(Report!C19=\"Red\",Report!C19,IF(Report!C19=\"Amber\",Report!C19))","v":false},{"$f":"IF(Report!C19=\"Red\",Report!D19,IF(Report!C19=\"Amber\",Report!D19))","v":false},{"$f":"IF(Report!C19=\"Red\",Report!E19,IF(Report!C19=\"Amber\",Report!E19))","v":false},{"$f":"IF(Report!C19=\"Red\",Report!F19,IF(Report!C19=\"Amber\",Report!F19))","v":false},{"$f":"IF(Report!C19=\"Red\",Report!G19,IF(Report!C19=\"Amber\",Report!G19))","v":false},{"$f":"IF(Report!C19=\"Red\",Report!H19,IF(Report!C19=\"Amber\",Report!H19))","v":false}]
[{"$f":"IF(Report!C20=\"Red\",Report!A20,IF(Report!C20=\"Amber\",Report!A20))","v":false},{"$f":"IF(Report!C20=\"Red\",Report!B20,IF(Report!C20=\"Amber\",Report!B20))","v":false},{"$f":"IF(Report!C20=\"Red\",Report!C20,IF(Report!C20=\"Amber\",Report!C20))","v":false},{"$f":"IF(Report!C20=\"Red\",Report!D20,IF(Report!C20=\"Amber\",Report!D20))","v":false},{"$f":"IF(Report!C20=\"Red\",Report!E20,IF(Report!C20=\"Amber\",Report!E20))","v":false},{"$f":"IF(Report!C20=\"Red\",Report!F20,IF(Report!C20=\"Amber\",Report!F20))","v":false},{"$f":"IF(Report!C20=\"Red\",Report!G20,IF(Report!C20=\"Amber\",Report!G20))","v":false},{"$f":"IF(Report!C20=\"Red\",Report!H20,IF(Report!C20=\"Amber\",Report!H20))","v":false}]
[{"$f":"IF(Report!C21=\"Red\",Report!A21,IF(Report!C21=\"Amber\",Report!A21))","v":false},{"$f":"IF(Report!C21=\"Red\",Report!B21,IF(Report!C21=\"Amber\",Report!B21))","v":false},{"$f":"IF(Report!C21=\"Red\",Report!C21,IF(Report!C21=\"Amber\",Report!C21))","v":false},{"$f":"IF(Report!C21=\"Red\",Report!D21,IF(Report!C21=\"Amber\",Report!D21))","v":false},{"$f":"IF(Report!C21=\"Red\",Report!E21,IF(Report!C21=\"Amber\",Report!E21))","v":false},{"$f":"IF(Report!C21=\"Red\",Report!F21,IF(Report!C21=\"Amber\",Report!F21))","v":false},{"$f":"IF(Report!C21=\"Red\",Report!G21,IF(Report!C21=\"Amber\",Report!G21))","v":false},{"$f":"IF(Report!C21=\"Red\",Report!H21,IF(Report!C21=\"Amber\",Report!H21))","v":false}]
[{"$f":"IF(Report!C22=\"Red\",Report!A22,IF(Report!C22=\"Amber\",Report!A22))","v":false},{"$f":"IF(Report!C22=\"Red\",Report!B22,IF(Report!C22=\"Amber\",Report!B22))","v":false},{"$f":"IF(Report!C22=\"Red\",Report!C22,IF(Report!C22=\"Amber\",Report!C22))","v":false},{"$f":"IF(Report!C22=\"Red\",Report!D22,IF(Report!C22=\"Amber\",Report!D22))","v":false},{"$f":"IF(Report!C22=\"Red\",Report!E22,IF(Report!C22=\"Amber\",Report!E22))","v":false},{"$f":"IF(Report!C22=\"Red\",Report!F22,IF(Report!C22=\"Amber\",Report!F22))","v":false},{"$f":"IF(Report!C22=\"Red\",Report!G22,IF(Report!C22=\"Amber\",Report!G22))","v":false},{"$f":"IF(Report!C22=\"Red\",Report!H22,IF(Report!C22=\"Amber\",Report!H22))","v":false}]
[{"$f":"IF(Report!C23=\"Red\",Report!A23,IF(Report!C23=\"Amber\",Report!A23))","v":false},{"$f":"IF(Report!C23=\"Red\",Report!B23,IF(Report!C23=\"Amber\",Report!B23))","v":false},{"$f":"IF(Report!C23=\"Red\",Report!C23,IF(Report!C23=\"Amber\",Report!C23))","v":false},{"$f":"IF(Report!C23=\"Red\",Report!D23,IF(Report!C23=\"Amber\",Report!D23))","v":false},{"$f":"IF(Report!C23=\"Red\",Report!E23,IF(Report!C23=\"Amber\",Report!E23))","v":false},{"$f":"IF(Report!C23=\"Red\",Report!F23,IF(Report!C23=\"Amber\",Report!F23))","v":false},{"$f":"IF(Report!C23=\"Red\",Report!G23,IF(Report!C23=\"Amber\",Report!G23))","v":false},{"$f":"IF(Report!C23=\"Red\",Report!H23,IF(Report!C23=\"Amber\",Report!H23))","v":false}]
[{"$f":"IF(Report!C24=\"Red\",Report!A24,IF(Report!C24=\"Amber\",Report!A24))","v":false},{"$f":"IF(Report!C24=\"Red\",Report!B24,IF(Report!C24=\"Amber\",Report!B24))","v":false},{"$f":"IF(Report!C24=\"Red\",Report!C24,IF(Report!C24=\"Amber\",Report!C24))","v":false},{"$f":"IF(Report!C24=\"Red\",Report!D24,IF(Report!C24=\"Amber\",Report!D24))","v":false},{"$f":"IF(Report!C24=\"Red\",Report!E24,IF(Report!C24=\"Amber\",Report!E24))","v":false},{"$f":"IF(Report!C24=\"Red\",Report!F24,IF(Report!C24=\"Amber\",Report!F24))","v":false},{"$f":"IF(Report!C24=\"Red\",Report!G24,IF(Report!C24=\"Amber\",Report!G24))","v":false},{"$f":"IF(Report!C24=\"Red\",Report!H24,IF(Report!C24=\"Amber\",Report!H24))","v":false}]
[{"$f":"IF(Report!C25=\"Red\",Report!A25,IF(Report!C25=\"Amber\",Report!A25))","v":false},{"$f":"IF(Report!C25=\"Red\",Report!B25,IF(Report!C25=\"Amber\",Report!B25))","v":false},{"$f":"IF(Report!C25=\"Red\",Report!C25,IF(Report!C25=\"Amber\",Report!C25))","v":false},{"$f":"IF(Report!C25=\"Red\",Report!D25,IF(Report!C25=\"Amber\",Report!D25))","v":false},{"$f":"IF(Report!C25=\"Red\",Report!E25,IF(Report!C25=\"Amber\",Report!E25))","v":false},{"$f":"IF(Report!C25=\"Red\",Report!F25,IF(Report!C25=\"Amber\",Report!F25))","v":false},{"$f":"IF(Report!C25=\"Red\",Report!G25,IF(Report!C25=\"Amber\",Report!G25))","v":false},{"$f":"IF(Report!C25=\"Red\",Report!H25,IF(Report!C25=\"Amber\",Report!H25))","v":false}]
[{"$f":"IF(Report!C26=\"Red\",Report!A26,IF(Report!C26=\"Amber\",Report!A26))","v":false},{"$f":"IF(Report!C26=\"Red\",Report!B26,IF(Report!C26=\"Amber\",Report!B26))","v":false},{"$f":"IF(Report!C26=\"Red\",Report!C26,IF(Report!C26=\"Amber\",Report!C26))","v":false},{"$f":"IF(Report!C26=\"Red\",Report!D26,IF(Report!C26=\"Amber\",Report!D26))","v":false},{"$f":"IF(Report!C26=\"Red\",Report!E26,IF(Report!C26=\"Amber\",Report!E26))","v":false},{"$f":"IF(Report!C26=\"Red\",Report!F26,IF(Report!C26=\"Amber\",Report!F26))","v":false},{"$f":"IF(Report!C26=\"Red\",Report!G26,IF(Report!C26=\"Amber\",Report!G26))","v":false},{"$f":"IF(Report!C26=\"Red\",Report!H26,IF(Report!C26=\"Amber\",Report!H26))","v":false}]
["Data – Partnership Meetings – How many have you attended – have you managed to contribute/make contribution to all?"]
[{"$f":"IF(Report!C28=\"Red\",Report!A28,IF(Report!C28=\"Amber\",Report!A28))","v":false},{"$f":"IF(Report!C28=\"Red\",Report!B28,IF(Report!C28=\"Amber\",Report!B28))","v":false},{"$f":"IF(Report!C28=\"Red\",Report!C28,IF(Report!C28=\"Amber\",Report!C28))","v":false},{"$f":"IF(Report!C28=\"Red\",Report!D28,IF(Report!C28=\"Amber\",Report!D28))","v":false},{"$f":"IF(Report!C28=\"Red\",Report!E28,IF(Report!C28=\"Amber\",Report!E28))","v":false},{"$f":"IF(Report!C28=\"Red\",Report!F28,IF(Report!C28=\"Amber\",Report!F28))","v":false},{"$f":"IF(Report!C28=\"Red\",Report!G28,IF(Report!C28=\"Amber\",Report!G28))","v":false},{"$f":"IF(Report!C28=\"Red\",Report!H28,IF(Report!C28=\"Amber\",Report!H28))","v":false}]
[{"$f":"IF(Report!C29=\"Red\",Report!A29,IF(Report!C29=\"Amber\",Report!A29))","v":false},{"$f":"IF(Report!C29=\"Red\",Report!B29,IF(Report!C29=\"Amber\",Report!B29))","v":false},{"$f":"IF(Report!C29=\"Red\",Report!C29,IF(Report!C29=\"Amber\",Report!C29))","v":false},{"$f":"IF(Report!C29=\"Red\",Report!D29,IF(Report!C29=\"Amber\",Report!D29))","v":false},{"$f":"IF(Report!C29=\"Red\",Report!E29,IF(Report!C29=\"Amber\",Report!E29))","v":false},{"$f":"IF(Report!C29=\"Red\",Report!F29,IF(Report!C29=\"Amber\",Report!F29))","v":false},{"$f":"IF(Report!C29=\"Red\",Report!G29,IF(Report!C29=\"Amber\",Report!G29))","v":false},{"$f":"IF(Report!C29=\"Red\",Report!H29,IF(Report!C29=\"Amber\",Report!H29))","v":false}]
[{"$f":"IF(Report!C30=\"Red\",Report!A30,IF(Report!C30=\"Amber\",Report!A30))","v":false},{"$f":"IF(Report!C30=\"Red\",Report!B30,IF(Report!C30=\"Amber\",Report!B30))","v":false},{"$f":"IF(Report!C30=\"Red\",Report!C30,IF(Report!C30=\"Amber\",Report!C30))","v":false},{"$f":"IF(Report!C30=\"Red\",Report!D30,IF(Report!C30=\"Amber\",Report!D30))","v":false},{"$f":"IF(Report!C30=\"Red\",Report!E30,IF(Report!C30=\"Amber\",Report!E30))","v":false},{"$f":"IF(Report!C30=\"Red\",Report!F30,IF(Report!C30=\"Amber\",Report!F30))","v":false},{"$f":"IF(Report!C30=\"Red\",Report!G30,IF(Report!C30=\"Amber\",Report!G30))","v":false},{"$f":"IF(Report!C30=\"Red\",Report!H30,IF(Report!C30=\"Amber\",Report!H30))","v":false}]
[{"$f":"IF(Report!C31=\"Red\",Report!A31,IF(Report!C31=\"Amber\",Report!A31))","v":false},{"$f":"IF(Report!C31=\"Red\",Report!B31,IF(Report!C31=\"Amber\",Report!B31))","v":false},{"$f":"IF(Report!C31=\"Red\",Report!C31,IF(Report!C31=\"Amber\",Report!C31))","v":false},{"$f":"IF(Report!C31=\"Red\",Report!D31,IF(Report!C31=\"Amber\",Report!D31))","v":false},{"$f":"IF(Report!C31=\"Red\",Report!E31,IF(Report!C31=\"Amber\",Report!E31))","v":false},{"$f":"IF(Report!C31=\"Red\",Report!F31,IF(Report!C31=\"Amber\",Report!F31))","v":false},{"$f":"IF(Report!C31=\"Red\",Report!G31,IF(Report!C31=\"Amber\",Report!G31))","v":false},{"$f":"IF(Report!C31=\"Red\",Report!H31,IF(Report!C31=\"Amber\",Report!H31))","v":false}]
[{"$f":"IF(Report!C32=\"Red\",Report!A32,IF(Report!C32=\"Amber\",Report!A32))","v":false},{"$f":"IF(Report!C32=\"Red\",Report!B32,IF(Report!C32=\"Amber\",Report!B32))","v":false},{"$f":"IF(Report!C32=\"Red\",Report!C32,IF(Report!C32=\"Amber\",Report!C32))","v":false},{"$f":"IF(Report!C32=\"Red\",Report!D32,IF(Report!C32=\"Amber\",Report!D32))","v":false},{"$f":"IF(Report!C32=\"Red\",Report!E32,IF(Report!C32=\"Amber\",Report!E32))","v":false},{"$f":"IF(Report!C32=\"Red\",Report!F32,IF(Report!C32=\"Amber\",Report!F32))","v":false},{"$f":"IF(Report!C32=\"Red\",Report!G32,IF(Report!C32=\"Amber\",Report!G32))","v":false},{"$f":"IF(Report!C32=\"Red\",Report!H32,IF(Report!C32=\"Amber\",Report!H32))","v":false}]
[{"$f":"IF(Report!C33=\"Red\",Report!A33,IF(Report!C33=\"Amber\",Report!A33))","v":false},{"$f":"IF(Report!C33=\"Red\",Report!B33,IF(Report!C33=\"Amber\",Report!B33))","v":false},{"$f":"IF(Report!C33=\"Red\",Report!C33,IF(Report!C33=\"Amber\",Report!C33))","v":false},{"$f":"IF(Report!C33=\"Red\",Report!D33,IF(Report!C33=\"Amber\",Report!D33))","v":false},{"$f":"IF(Report!C33=\"Red\",Report!E33,IF(Report!C33=\"Amber\",Report!E33))","v":false},{"$f":"IF(Report!C33=\"Red\",Report!F33,IF(Report!C33=\"Amber\",Report!F33))","v":false},{"$f":"IF(Report!C33=\"Red\",Report!G33,IF(Report!C33=\"Amber\",Report!G33))","v":false},{"$f":"IF(Report!C33=\"Red\",Report!H33,IF(Report!C33=\"Amber\",Report!H33))","v":false}]
[{"$f":"IF(Report!C34=\"Red\",Report!A34,IF(Report!C34=\"Amber\",Report!A34))","v":false},{"$f":"IF(Report!C34=\"Red\",Report!B34,IF(Report!C34=\"Amber\",Report!B34))","v":false},{"$f":"IF(Report!C34=\"Red\",Report!C34,IF(Report!C34=\"Amber\",Report!C34))","v":false},{"$f":"IF(Report!C34=\"Red\",Report!D34,IF(Report!C34=\"Amber\",Report!D34))","v":false},{"$f":"IF(Report!C34=\"Red\",Report!E34,IF(Report!C34=\"Amber\",Report!E34))","v":false},{"$f":"IF(Report!C34=\"Red\",Report!F34,IF(Report!C34=\"Amber\",Report!F34))","v":false},{"$f":"IF(Report!C34=\"Red\",Report!G34,IF(Report!C34=\"Amber\",Report!G34))","v":false},{"$f":"IF(Report!C34=\"Red\",Report!H34,IF(Report!C34=\"Amber\",Report!H34))","v":false}]
["Data -  Number of students who are/subject to:"]
[{"$f":"IF(Report!C36=\"Red\",Report!A36,IF(Report!C36=\"Amber\",Report!A36))","v":false},{"$f":"IF(Report!C36=\"Red\",Report!B36,IF(Report!C36=\"Amber\",Report!B36))","v":false},{"$f":"IF(Report!C36=\"Red\",Report!C36,IF(Report!C36=\"Amber\",Report!C36))","v":false},{"$f":"IF(Report!C36=\"Red\",Report!D36,IF(Report!C36=\"Amber\",Report!D36))","v":false},{"$f":"IF(Report!C36=\"Red\",Report!E36,IF(Report!C36=\"Amber\",Report!E36))","v":false},{"$f":"IF(Report!C36=\"Red\",Report!F36,IF(Report!C36=\"Amber\",Report!F36))","v":false},{"$f":"IF(Report!C36=\"Red\",Report!G36,IF(Report!C36=\"Amber\",Report!G36))","v":false},{"$f":"IF(Report!C36=\"Red\",Report!H36,IF(Report!C36=\"Amber\",Report!H36))","v":false}]
[{"$f":"IF(Report!C37=\"Red\",Report!A37,IF(Report!C37=\"Amber\",Report!A37))","v":false},{"$f":"IF(Report!C37=\"Red\",Report!B37,IF(Report!C37=\"Amber\",Report!B37))","v":false},{"$f":"IF(Report!C37=\"Red\",Report!C37,IF(Report!C37=\"Amber\",Report!C37))","v":false},{"$f":"IF(Report!C37=\"Red\",Report!D37,IF(Report!C37=\"Amber\",Report!D37))","v":false},{"$f":"IF(Report!C37=\"Red\",Report!E37,IF(Report!C37=\"Amber\",Report!E37))","v":false},{"$f":"IF(Report!C37=\"Red\",Report!F37,IF(Report!C37=\"Amber\",Report!F37))","v":false},{"$f":"IF(Report!C37=\"Red\",Report!G37,IF(Report!C37=\"Amber\",Report!G37))","v":false},{"$f":"IF(Report!C37=\"Red\",Report!H37,IF(Report!C37=\"Amber\",Report!H37))","v":false}]
[{"$f":"IF(Report!C38=\"Red\",Report!A38,IF(Report!C38=\"Amber\",Report!A38))","v":false},{"$f":"IF(Report!C38=\"Red\",Report!B38,IF(Report!C38=\"Amber\",Report!B38))","v":false},{"$f":"IF(Report!C38=\"Red\",Report!C38,IF(Report!C38=\"Amber\",Report!C38))","v":false},{"$f":"IF(Report!C38=\"Red\",Report!D38,IF(Report!C38=\"Amber\",Report!D38))","v":false},{"$f":"IF(Report!C38=\"Red\",Report!E38,IF(Report!C38=\"Amber\",Report!E38))","v":false},{"$f":"IF(Report!C38=\"Red\",Report!F38,IF(Report!C38=\"Amber\",Report!F38))","v":false},{"$f":"IF(Report!C38=\"Red\",Report!G38,IF(Report!C38=\"Amber\",Report!G38))","v":false},{"$f":"IF(Report!C38=\"Red\",Report!H38,IF(Report!C38=\"Amber\",Report!H38))","v":false}]
[{"$f":"IF(Report!C39=\"Red\",Report!A39,IF(Report!C39=\"Amber\",Report!A39))","v":false},{"$f":"IF(Report!C39=\"Red\",Report!B39,IF(Report!C39=\"Amber\",Report!B39))","v":false},{"$f":"IF(Report!C39=\"Red\",Report!C39,IF(Report!C39=\"Amber\",Report!C39))","v":false},{"$f":"IF(Report!C39=\"Red\",Report!D39,IF(Report!C39=\"Amber\",Report!D39))","v":false},{"$f":"IF(Report!C39=\"Red\",Report!E39,IF(Report!C39=\"Amber\",Report!E39))","v":false},{"$f":"IF(Report!C39=\"Red\",Report!F39,IF(Report!C39=\"Amber\",Report!F39))","v":false},{"$f":"IF(Report!C39=\"Red\",Report!G39,IF(Report!C39=\"Amber\",Report!G39))","v":false},{"$f":"IF(Report!C39=\"Red\",Report!H39,IF(Report!C39=\"Amber\",Report!H39))","v":false}]
[{"$f":"IF(Report!C40=\"Red\",Report!A40,IF(Report!C40=\"Amber\",Report!A40))","v":false},{"$f":"IF(Report!C40=\"Red\",Report!B40,IF(Report!C40=\"Amber\",Report!B40))","v":false},{"$f":"IF(Report!C40=\"Red\",Report!C40,IF(Report!C40=\"Amber\",Report!C40))","v":false},{"$f":"IF(Report!C40=\"Red\",Report!D40,IF(Report!C40=\"Amber\",Report!D40))","v":false},{"$f":"IF(Report!C40=\"Red\",Report!E40,IF(Report!C40=\"Amber\",Report!E40))","v":false},{"$f":"IF(Report!C40=\"Red\",Report!F40,IF(Report!C40=\"Amber\",Report!F40))","v":false},{"$f":"IF(Report!C40=\"Red\",Report!G40,IF(Report!C40=\"Amber\",Report!G40))","v":false},{"$f":"IF(Report!C40=\"Red\",Report!H40,IF(Report!C40=\"Amber\",Report!H40))","v":false}]
[{"$f":"IF(Report!C41=\"Red\",Report!A41,IF(Report!C41=\"Amber\",Report!A41))","v":false},{"$f":"IF(Report!C41=\"Red\",Report!B41,IF(Report!C41=\"Amber\",Report!B41))","v":false},{"$f":"IF(Report!C41=\"Red\",Report!C41,IF(Report!C41=\"Amber\",Report!C41))","v":false},{"$f":"IF(Report!C41=\"Red\",Report!D41,IF(Report!C41=\"Amber\",Report!D41))","v":false},{"$f":"IF(Report!C41=\"Red\",Report!E41,IF(Report!C41=\"Amber\",Report!E41))","v":false},{"$f":"IF(Report!C41=\"Red\",Report!F41,IF(Report!C41=\"Amber\",Report!F41))","v":false},{"$f":"IF(Report!C41=\"Red\",Report!G41,IF(Report!C41=\"Amber\",Report!G41))","v":false},{"$f":"IF(Report!C41=\"Red\",Report!H41,IF(Report!C41=\"Amber\",Report!H41))","v":false}]
[{"$f":"IF(Report!C42=\"Red\",Report!A42,IF(Report!C42=\"Amber\",Report!A42))","v":false},{"$f":"IF(Report!C42=\"Red\",Report!B42,IF(Report!C42=\"Amber\",Report!B42))","v":false},{"$f":"IF(Report!C42=\"Red\",Report!C42,IF(Report!C42=\"Amber\",Report!C42))","v":false},{"$f":"IF(Report!C42=\"Red\",Report!D42,IF(Report!C42=\"Amber\",Report!D42))","v":false},{"$f":"IF(Report!C42=\"Red\",Report!E42,IF(Report!C42=\"Amber\",Report!E42))","v":false},{"$f":"IF(Report!C42=\"Red\",Report!F42,IF(Report!C42=\"Amber\",Report!F42))","v":false},{"$f":"IF(Report!C42=\"Red\",Report!G42,IF(Report!C42=\"Amber\",Report!G42))","v":false},{"$f":"IF(Report!C42=\"Red\",Report!H42,IF(Report!C42=\"Amber\",Report!H42))","v":false}]
["Data about staff and safer working practice:"]
[{"$f":"IF(Report!C44=\"Red\",Report!A44,IF(Report!C44=\"Amber\",Report!A44))","v":false},{"$f":"IF(Report!C44=\"Red\",Report!B44,IF(Report!C44=\"Amber\",Report!B44))","v":false},{"$f":"IF(Report!C44=\"Red\",Report!C44,IF(Report!C44=\"Amber\",Report!C44))","v":false},{"$f":"IF(Report!C44=\"Red\",Report!D44,IF(Report!C44=\"Amber\",Report!D44))","v":false},{"$f":"IF(Report!C44=\"Red\",Report!E44,IF(Report!C44=\"Amber\",Report!E44))","v":false},{"$f":"IF(Report!C44=\"Red\",Report!F44,IF(Report!C44=\"Amber\",Report!F44))","v":false},{"$f":"IF(Report!C44=\"Red\",Report!G44,IF(Report!C44=\"Amber\",Report!G44))","v":false},{"$f":"IF(Report!C44=\"Red\",Report!H44,IF(Report!C44=\"Amber\",Report!H44))","v":false}]
[{"$f":"IF(Report!C45=\"Red\",Report!A45,IF(Report!C45=\"Amber\",Report!A45))","v":false},{"$f":"IF(Report!C45=\"Red\",Report!B45,IF(Report!C45=\"Amber\",Report!B45))","v":false},{"$f":"IF(Report!C45=\"Red\",Report!C45,IF(Report!C45=\"Amber\",Report!C45))","v":false},{"$f":"IF(Report!C45=\"Red\",Report!D45,IF(Report!C45=\"Amber\",Report!D45))","v":false},{"$f":"IF(Report!C45=\"Red\",Report!E45,IF(Report!C45=\"Amber\",Report!E45))","v":false},{"$f":"IF(Report!C45=\"Red\",Report!F45,IF(Report!C45=\"Amber\",Report!F45))","v":false},{"$f":"IF(Report!C45=\"Red\",Report!G45,IF(Report!C45=\"Amber\",Report!G45))","v":false},{"$f":"IF(Report!C45=\"Red\",Report!H45,IF(Report!C45=\"Amber\",Report!H45))","v":false}]
[]
[]
[]
[]
[]
[]
[]
[]
[]
[]
[]
[]
[]
[]
[]
[]
[]
[]
[]
[]
[]
[]
[]
[]
[]
[]
[]
[]
[]
[]
[]
[]
[]
[]
[]
[]
[]
[]
[]
[]
[]
[]
[]
[]
[]
[]
[]
[]
[]
[]
[]
[]
[]
[]
[]
[]
[]
[]
[]
[]
[]
[]
[]
[]
[]
[]
[]
[]
[]
[]
[]
[]
[]
[]
[]
[]
[]
[]
[]
[]
[]
[]
[]
[]
[]
[]
["Further Actions"]
["Please record any further actions you may have below"]
["-"]
["-"]
["-"]
["-"]
["-"]
["-"]
["-"]
["-"]
["-"]
["-"]
["-"]
["-"]
["-"]
["-"]
[]
[]
[]
["-"]
["-"]
["-"]